bitfinex-derivatives/quotes_BTCF0:USTF0_20240910
["timestamp","ask_amount","ask_price","bid_price","bid_amount"]
[1725988415719,0.15501898,57211.0,57210.0,0.0008]
[1725988415916,0.75501898,57211.0,57210.0,0.0008]
[1725988416124,1.04240998,57211.0,57210.0,0.0008]
[1725988416426,1.04240998,57211.0,57194.0,0.087417]
[1725988416427,1.05338406,57211.0,57194.0,0.087417]
[1725988416633,0.28741,57199.0,57186.0,0.2]
[1725988416813,0.23797726,57198.0,57186.0,0.2]
[1725988417015,0.23797726,57198.0,57190.0,0.087423]
[1725988417016,0.14107826,57197.0,57190.0,0.087423]
[1725988417219,0.05366626,57196.0,57186.0,0.2]
[1725988417520,0.05366626,57196.0,57191.0,0.08742]
[1725988417716,0.34108226,57195.0,57183.0,0.1009]
[1725988417918,0.19185214,57184.0,57183.0,0.188334]
[1725988418116,0.05366626,57184.0,57183.0,0.188334]
[1725988418322,0.19185682,57184.0,57179.0,0.08744]
[1725988418524,0.24552308,57184.0,57175.0,0.1009]
[1725988418725,0.19185682,57181.0,57176.0,0.087444]
[1725988419115,0.24552308,57180.0,57176.0,0.087444]
[1725988419330,0.05366626,57179.0,57176.0,0.087444]
[1725988419531,0.05366626,57178.0,57175.0,0.1009]
[1725988419829,0.05366626,57177.0,57176.0,0.087444]
[1725988420020,0.19185682,57178.0,57177.0,0.087443]
[1725988420223,0.19185682,57178.0,57177.0,0.088243]
[1725988420624,0.05367604,57178.0,57177.0,0.088243]
[1725988421230,0.05467604,57178.0,57177.0,0.088243]
[1725988421629,0.05467604,57178.0,57177.0,0.368243]
[1725988422023,0.05467604,57178.0,57177.0,0.2808]
[1725988422223,0.14311704,57178.0,57177.0,0.0048]
[1725988422427,0.2811895,57178.0,57177.0,0.0048]
[1725988422623,0.24742454,57178.0,57177.0,0.0048]
[1725988423129,0.002,57178.0,57177.0,0.2848]
[1725988423322,0.19174998,57182.0,57178.0,0.087441]
[1725988423633,0.05367051,57194.0,57180.0,0.087438]
[1725988423634,0.05366972,57181.0,57180.0,0.087438]
[1725988423823,0.05366972,57181.0,57180.0,0.774876]
[1725988424134,0.05366972,57181.0,57180.0,1.579516]
[1725988424323,0.03196086,57196.0,57187.0,0.087427]
[1725988424324,0.087424,57190.0,57187.0,0.087427]
[1725988424521,0.04368194,57190.0,57187.0,0.17332684]
[1725988424719,0.04368194,57190.0,57189.0,0.0008]
[1725988425132,0.04368194,57190.0,57189.0,0.06953409]
[1725988426232,0.04668194,57190.0,57189.0,0.06953409]
[1725988426434,0.04668194,57190.0,57189.0,0.0008]
[1725988426826,0.04668194,57190.0,57189.0,0.06953409]
[1725988427027,0.04968194,57190.0,57189.0,0.06953409]
[1725988427627,0.04468194,57190.0,57189.0,0.07053409]
[1725988427829,0.002,57190.0,57189.0,0.07653409]
[1725988428232,0.002,57190.0,57189.0,0.0078]
[1725988428430,0.089423,57190.0,57189.0,0.07653409]
[1725988429028,0.088423,57190.0,57189.0,0.0018]
[1725988429228,0.089423,57190.0,57189.0,0.0068]
[1725988429431,0.089423,57190.0,57189.0,0.05736106]
[1725988429630,0.613983,57190.0,57189.0,0.0058]
[1725988430432,0.612983,57190.0,57189.0,0.0058]
[1725988430639,0.611983,57190.0,57189.0,0.0008]
[1725988430933,0.088423,57190.0,57189.0,0.0058]
[1725988431331,0.14209867,57190.0,57189.0,0.0058]
[1725988431533,0.14309867,57190.0,57189.0,0.0008]
[1725988431735,0.66765867,57190.0,57189.0,0.0008]
[1725988431936,0.087431,57185.0,57179.0,0.087439]
[1725988432451,0.0337504,57190.0,57184.0,0.28]
[1725988432635,0.0337504,57190.0,57189.0,0.0004]
[1725988432828,0.0337504,57190.0,57189.0,0.087825]
[1725988433034,0.003,57190.0,57189.0,0.087825]
[1725988433428,0.003,57190.0,57189.0,0.087425]
[1725988434133,0.002,57190.0,57189.0,0.087425]
[1725988434328,0.001,57190.0,57189.0,0.087425]
[1725988435035,0.0969,57198.0,57189.0,0.087425]
[1725988435036,0.17425978,57200.0,57194.0,0.087415]
[1725988435229,0.18385976,57210.0,57204.0,0.087402]
[1725988435427,0.41595138,57256.0,57199.0,0.2804]
[1725988435428,0.28,57248.0,57211.0,0.28]
[1725988435630,0.2001,57242.0,57225.0,0.28]
[1725988435829,0.28,57238.0,57220.0,0.367376]
[1725988436030,0.28,57233.0,57220.0,0.087376]
[1725988437831,0.001,57238.0,57220.0,0.087376]
[1725988438026,0.281,57238.0,57237.0,0.0008]
[1725988438235,0.881,57238.0,57237.0,0.0008]
[1725988438436,1.40512,57238.0,57237.0,0.0008]
[1725988438940,1.4366994,57238.0,57237.0,0.0008]
[1725988439139,1.4356994,57238.0,57237.0,0.0008]
[1725988439838,1.4356994,57238.0,57237.0,0.0018]
[1725988439839,1.4486994,57238.0,57237.0,0.0018]
[1725988440636,0.3245794,57238.0,57237.0,0.0018]
[1725988440835,0.0575794,57238.0,57237.0,0.0028]
[1725988441537,0.0575794,57238.0,57237.0,0.2828]
[1725988441538,0.026,57238.0,57237.0,0.2828]
[1725988441738,0.03104452,57244.0,57237.0,0.2828]
[1725988442042,0.1049,57252.0,57243.0,0.0008]
[1725988442240,0.087332,57250.0,57243.0,0.0008]
[1725988443130,0.08734,57245.0,57243.0,0.0008]
[1725988443441,0.014,57244.0,57243.0,0.0008]
[1725988443831,0.006,57244.0,57243.0,0.0008]
[1725988444034,0.014,57250.0,57243.0,1.40588]
[1725988444338,0.08727,57291.0,57251.0,0.08733]
[1725988444339,0.087282,57283.0,57251.0,0.08733]
[1725988444536,0.0974,57295.0,57276.0,0.28]
[1725988444537,0.1006,57290.0,57276.0,0.28]
[1725988444729,0.087278,57285.0,57276.0,0.28]
[1725988445145,0.1006,57290.0,57276.0,0.28]
[1725988445146,0.1006,57290.0,57277.0,0.087289]
[1725988445337,0.5462,57341.0,57277.0,0.087289]
[1725988445338,0.0981,57322.0,57289.0,0.28]
[1725988445645,0.28,57301.0,57289.0,0.0008]
[1725988445942,0.0981,57300.0,57289.0,0.28]
[1725988446440,0.0981,57300.0,57294.0,0.28]
[1725988447536,0.08725,57304.0,57294.0,0.28]
[1725988447739,0.08725,57304.0,57303.0,0.0008]
[1725988448043,0.28,57315.0,57294.0,0.2867]
[1725988448240,0.087241,57310.0,57296.0,0.28]
[1725988448638,0.087242,57309.0,57296.0,0.28]
[1725988448947,0.1025,57319.0,57294.0,0.011]
[1725988448948,0.28,57311.0,57294.0,0.011]
[1725988449144,0.08725,57304.0,57294.0,0.011]
[1725988449336,0.087252,57303.0,57294.0,0.011]
[1725988449537,0.28,57302.0,57294.0,0.011]
[1725988449749,0.28,57297.0,57294.0,0.011]
[1725988450041,0.1025,57296.0,57294.0,0.011]
[1725988450341,0.189762,57296.0,57294.0,0.005]
[1725988450939,0.189762,57296.0,57294.0,0.009]
[1725988451138,0.189762,57296.0,57294.0,0.007]
[1725988452054,0.087292,57277.0,57256.0,0.05156106]
[1725988452345,0.087283,57282.0,57264.0,0.28]
[1725988452549,0.28,57287.0,57281.0,0.0008]
[1725988452842,0.087283,57282.0,57281.0,0.0008]
[1725988453238,0.28,57287.0,57281.0,0.0008]
[1725988453440,0.367275,57287.0,57286.0,0.0008]
[1725988453833,0.089275,57287.0,57286.0,0.0008]
[1725988454538,0.02987468,57291.0,57286.0,0.0008]
[1725988454745,0.003,57287.0,57286.0,0.0018]
[1725988455050,0.003,57287.0,57286.0,0.001]
[1725988455257,0.087242,57309.0,57286.0,1.12468]
[1725988455551,0.087242,57309.0,57308.0,0.0008]
[1725988456842,0.1012,57312.0,57308.0,0.0008]
[1725988457038,0.009,57309.0,57308.0,0.2828]
[1725988457240,0.009,57309.0,57308.0,0.282]
[1725988457640,0.087225,57320.0,57308.0,1.40548]
[1725988457851,0.087225,57320.0,57319.0,0.0004]
[1725988458354,1.00176,57334.0,57319.0,0.0004]
[1725988458355,1.00088,57334.0,57319.0,0.6004]
[1725988458649,1.0,57334.0,57333.0,0.2804]
[1725988459148,1.0,57334.0,57333.0,1.40364]
[1725988459849,0.5261,57334.0,57333.0,1.40364]
[1725988460036,0.092,57334.0,57333.0,1.40364]
[1725988460235,0.02947456,57363.0,57333.0,1.7833457]
[1725988460441,0.087159,57363.0,57356.0,0.46]
[1725988460652,0.46,57370.0,57362.0,0.0004]
[1725988460851,0.46,57370.0,57369.0,0.0004]
[1725988461143,0.0549,57370.0,57369.0,0.0004]
[1725988461352,0.142049,57370.0,57369.0,0.0004]
[1725988461845,0.142049,57370.0,57339.0,0.46]
[1725988461846,1.06,57370.0,57339.0,0.46]
[1725988462046,0.0004,57340.0,57339.0,0.46]
[1725988462242,0.0004,57340.0,57339.0,1.06]
[1725988462545,0.0004,57340.0,57339.0,0.9832]
[1725988462946,0.0004,57340.0,57339.0,1.5832]
[1725988463149,0.0004,57340.0,57339.0,0.9932]
[1725988463353,0.0004,57340.0,57339.0,1.5932]
[1725988463553,0.0016,57340.0,57339.0,1.5932]
[1725988463750,0.0016,57340.0,57339.0,1.6032]
[1725988465050,0.08716,57363.0,57339.0,1.6032]
[1725988465256,0.08716,57363.0,57362.0,0.0008]
[1725988465257,0.14336,57363.0,57362.0,0.0008]
[1725988465850,0.08716,57363.0,57362.0,0.5238]
[1725988466350,0.547134,57380.0,57362.0,0.5238]
[1725988466351,0.087142,57375.0,57362.0,1.1238]
[1725988466652,0.0562,57375.0,57374.0,0.0008]
[1725988467256,0.03004943,57391.0,57381.0,0.087132]
[1725988467452,0.087107,57398.0,57390.0,0.4608]
[1725988467656,0.46,57410.0,57397.0,0.0008]
[1725988467861,0.0562,57391.0,57390.0,0.0008]
[1725988469362,0.0562,57391.0,57374.0,0.001]
[1725988469560,0.0562,57377.0,57374.0,0.001]
[1725988469756,0.087137,57378.0,57368.0,0.46]
[1725988469967,0.01259517,57371.0,57368.0,0.46]
[1725988470363,0.087119,57390.0,57368.0,0.46]
[1725988470559,0.01259517,57372.0,57368.0,0.46]
[1725988470763,0.08716,57363.0,57347.0,0.46]
[1725988470967,0.087175,57353.0,57335.0,0.087202]
[1725988471165,0.46,57353.0,57328.0,0.46]
[1725988471469,0.01259517,57326.0,57322.0,0.47]
[1725988471666,0.087174,57354.0,57322.0,0.47]
[1725988471667,0.01259517,57331.0,57322.0,0.47]
[1725988471865,0.01259517,57330.0,57322.0,0.47]
[1725988472071,0.01259517,57328.0,57322.0,0.47]
[1725988472266,0.01259517,57328.0,57317.0,0.47]
[1725988472470,0.28259517,57339.0,57317.0,0.47]
[1725988472774,0.087212,57329.0,57317.0,0.47]
[1725988472964,0.087212,57329.0,57322.0,0.028]
[1725988473164,0.47,57333.0,57322.0,0.028]
[1725988473370,0.087216,57326.0,57322.0,0.014]
[1725988473573,0.1169,57332.0,57322.0,0.014]
[1725988473574,0.087218,57325.0,57322.0,0.014]
[1725988473763,0.087218,57325.0,57317.0,0.023]
[1725988473969,0.0004,57318.0,57317.0,0.023]
[1725988474179,0.1169,57332.0,57317.0,0.5464]
[1725988474379,0.204106,57332.0,57331.0,0.0004]
[1725988475477,0.204106,57332.0,57322.0,0.004]
[1725988475478,0.08721,57330.0,57322.0,0.004]
[1725988475668,0.0004,57323.0,57322.0,0.004]
[1725988476068,0.0004,57323.0,57315.0,0.47]
[1725988476577,0.00413482,57332.0,57315.0,0.47]
[1725988476781,0.00413482,57332.0,57322.0,0.003]
[1725988477072,0.08721,57330.0,57322.0,0.003]
[1725988477274,0.087204,57334.0,57322.0,0.003]
[1725988477574,0.47096001,57338.0,57333.0,0.0004]
[1725988477875,0.557197,57338.0,57337.0,0.0004]
[1725988478083,0.9932,57338.0,57322.0,0.007]
[1725988478270,0.0004,57323.0,57322.0,0.004]
[1725988479575,0.0004,57323.0,57322.0,0.007]
[1725988479776,0.0004,57323.0,57322.0,0.003]
[1725988480078,0.0004,57323.0,57322.0,0.007]
[1725988480680,0.0004,57323.0,57322.0,0.003]
[1725988480876,0.0004,57323.0,57322.0,0.006]
[1725988482369,0.0004,57323.0,57322.0,0.466]
[1725988482571,0.1106,57342.0,57339.0,0.087196]
[1725988482773,0.08714,57377.0,57341.0,0.0004]
[1725988482774,0.02921793,57355.0,57341.0,0.0004]
[1725988482990,0.087167,57359.0,57354.0,0.0004]
[1725988483180,0.087167,57359.0,57358.0,0.0004]
[1725988483477,0.2325,57362.0,57352.0,0.46]
[1725988483686,0.2325,57362.0,57361.0,0.0004]
[1725988484281,0.319661,57362.0,57361.0,0.0004]
[1725988485874,0.319661,57362.0,57352.0,0.006]
[1725988485875,0.087162,57361.0,57352.0,0.006]
[1725988486075,0.0004,57353.0,57352.0,0.006]
[1725988486381,0.087575,57353.0,57352.0,0.006]
[1725988486581,0.087575,57353.0,57351.0,0.05066552]
[1725988486582,0.0004,57353.0,57351.0,0.05066552]
[1725988486777,0.0004,57353.0,57347.0,0.06755403]
[1725988486778,0.087576,57352.0,57350.0,0.05066552]
[1725988486982,0.08718,57350.0,57349.0,0.05082766]
[1725988487281,0.08718,57350.0,57331.0,0.46]
[1725988487282,0.087185,57346.0,57344.0,0.06755403]
[1725988487470,0.08719,57343.0,57332.0,0.08478259]
[1725988487669,0.0004,57333.0,57331.0,0.05089176]
[1725988487871,0.0004,57332.0,57331.0,0.05089176]
[1725988488075,0.47,57340.0,57331.0,0.05089176]
[1725988488284,0.087194,57340.0,57339.0,0.0004]
[1725988488783,1.210394,57340.0,57339.0,0.0004]
[1725988489574,1.210394,57340.0,57339.0,0.0024]
[1725988490186,1.210394,57340.0,57339.0,0.0014]
[1725988490386,1.210394,57340.0,57339.0,0.0024]
[1725988490581,1.210394,57340.0,57322.0,0.64200359]
[1725988490582,0.087206,57333.0,57329.0,0.05089176]
[1725988490781,0.0004,57330.0,57326.0,0.05089176]
[1725988490982,0.0004,57330.0,57311.0,0.47]
[1725988490983,0.0004,57327.0,57322.0,0.05089176]
[1725988491188,0.0004,57330.0,57324.0,0.13811076]
[1725988491382,0.0004,57330.0,57329.0,0.4604]
[1725988491582,0.087193,57342.0,57329.0,0.547611]
[1725988491790,0.09625629,57341.0,57333.0,0.087205]
[1725988491986,0.09625629,57341.0,57329.0,0.46]
[1725988492188,0.18344929,57341.0,57339.0,0.001]
[1725988492493,0.087194,57340.0,57339.0,0.001]
[1725988492686,1.21945629,57341.0,57339.0,0.001]
[1725988492892,0.69625629,57341.0,57340.0,0.0004]
[1725988493190,0.18344929,57341.0,57340.0,0.0004]
[1725988493391,1.26393387,57341.0,57340.0,0.0004]
[1725988493578,0.66393387,57341.0,57340.0,0.0004]
[1725988493787,0.05354087,57341.0,57340.0,0.0004]
[1725988493985,0.14073387,57341.0,57340.0,0.0004]
[1725988494185,0.087193,57341.0,57340.0,0.0004]
[1725988494588,1.210393,57341.0,57340.0,0.0004]
[1725988495390,1.210393,57341.0,57340.0,0.0014]
[1725988495896,1.210393,57341.0,57340.0,0.0004]
[1725988496087,1.210393,57341.0,57340.0,0.0014]
[1725988496290,1.210393,57341.0,57340.0,0.0024]
[1725988496588,1.1232,57341.0,57340.0,0.0024]
[1725988496794,1.210393,57341.0,57340.0,0.0024]
[1725988497093,1.210393,57341.0,57340.0,0.0014]
[1725988497394,1.1232,57341.0,57322.0,0.47]
[1725988497692,1.1232,57341.0,57318.0,0.1157]
[1725988497693,0.02875887,57344.0,57340.0,0.001]
[1725988497897,0.121,57346.0,57343.0,0.0004]
[1725988498088,0.52316,57345.0,57343.0,0.0004]
[1725988498292,0.087188,57344.0,57343.0,0.0004]
[1725988498485,0.00088,57345.0,57340.0,0.001]
[1725988498688,0.0004,57341.0,57340.0,0.001]
[1725988498892,0.0004,57341.0,57333.0,0.087204]
[1725988499090,0.0004,57341.0,57331.0,0.46]
[1725988499091,0.0004,57341.0,57331.0,0.46108]
[1725988499299,0.087196,57339.0,57333.0,0.05089176]
[1725988500193,0.087196,57339.0,57333.0,0.05889176]
[1725988500389,0.087203,57334.0,57333.0,0.05889176]
[1725988500596,0.0872,57337.0,57333.0,0.05889176]
[1725988500793,0.121,57346.0,57336.0,0.0004]
[1725988500998,0.121,57346.0,57345.0,0.0004]
[1725988501293,0.121,57346.0,57336.0,0.0004]
[1725988501483,0.121,57346.0,57340.0,0.002]
[1725988501683,0.121,57346.0,57343.0,0.087189]
[1725988501984,0.121,57346.0,57336.0,0.00148]
[1725988502187,0.087191,57343.0,57336.0,0.0004]
[1725988502495,0.0004,57337.0,57336.0,0.0004]
[1725988502690,0.087599,57337.0,57336.0,0.0004]
[1725988502998,0.087599,57337.0,57329.0,0.06785569]
[1725988502999,0.08721,57330.0,57329.0,0.06785569]
[1725988503297,0.08761,57330.0,57329.0,0.06785569]
[1725988503491,1.2981,57330.0,57329.0,0.06785569]
[1725988503683,1.2981,57330.0,57329.0,1e-08]
[1725988503883,0.087216,57326.0,57313.0,0.1179]
[1725988504096,0.0004,57326.0,57314.0,0.087233]
[1725988504291,0.0004,57326.0,57313.0,0.58906]
[1725988504487,0.0004,57314.0,57301.0,0.08478259]
[1725988504691,0.0004,57314.0,57302.0,0.47]
[1725988505398,0.0004,57314.0,57313.0,0.014]
[1725988505792,0.087634,57314.0,57313.0,0.014]
[1725988505993,1.211074,57314.0,57313.0,0.014]
[1725988506194,0.087634,57314.0,57302.0,0.47]
[1725988506389,0.0004,57314.0,57307.0,0.47]
[1725988506784,0.0004,57314.0,57304.0,0.087249]
[1725988506988,0.0004,57305.0,57302.0,0.01508]
[1725988507187,0.0004,57305.0,57302.0,0.014]
[1725988507606,0.0004,57305.0,57304.0,0.087249]
[1725988507804,0.0004,57314.0,57303.0,0.52352]
[1725988507992,0.0004,57314.0,57313.0,0.0004]
[1725988508487,0.0004,57314.0,57313.0,0.0114]
[1725988508692,0.087634,57314.0,57313.0,0.0114]
[1725988508997,0.24316301,57314.0,57313.0,0.0114]
[1725988509197,0.18352651,57314.0,57313.0,0.0114]
[1725988509589,1.26209009,57314.0,57303.0,0.014]
[1725988509900,0.087649,57304.0,57303.0,0.014]
[1725988510299,0.13038772,57304.0,57303.0,0.014]
[1725988510497,0.13038854,57304.0,57303.0,0.014]
[1725988510699,0.13038854,57304.0,57283.0,0.47]
[1725988510700,1.30748633,57304.0,57284.0,0.087279]
[1725988510901,0.13859252,57302.0,57283.0,0.47]
[1725988511214,0.0004,57284.0,57283.0,0.557281]
[1725988511901,0.0004,57284.0,57277.0,0.47]
[1725988512105,0.0004,57284.0,57283.0,0.557281]
[1725988512305,0.13859252,57301.0,57283.0,1.00772]
[1725988512498,0.13859252,57304.0,57292.0,0.47]
[1725988512698,0.18133407,57303.0,57286.0,0.087276]
[1725988512899,0.0004,57287.0,57284.0,0.087279]
[1725988513208,0.001,57284.0,57283.0,0.023]
[1725988513505,0.0014,57284.0,57283.0,0.110281]
[1725988513695,0.13859252,57306.0,57284.0,0.52368]
[1725988513897,0.47,57316.0,57283.0,0.623]
[1725988513898,0.087233,57315.0,57305.0,0.0004]
[1725988514203,0.174464,57315.0,57314.0,0.0004]
[1725988514407,0.087246,57306.0,57305.0,0.0004]
[1725988514707,0.0435831,57306.0,57305.0,0.0004]
[1725988514901,0.47,57316.0,57305.0,0.0004]
[1725988515098,0.47,57316.0,57315.0,0.0004]
[1725988515412,0.087231,57316.0,57315.0,0.0004]
[1725988515798,0.087225,57321.0,57315.0,0.0004]
[1725988516109,0.00088,57327.0,57319.0,0.0004]
[1725988516404,0.087209,57331.0,57326.0,0.0004]
[1725988516607,0.087209,57331.0,57330.0,0.0004]
[1725988516794,0.087202,57335.0,57330.0,0.0004]
[1725988517104,0.47096001,57343.0,57326.0,0.0004]
[1725988517105,0.087195,57340.0,57334.0,0.0004]
[1725988517405,0.087194,57341.0,57339.0,0.0004]
[1725988517605,0.2334,57346.0,57339.0,0.0004]
[1725988517803,0.087194,57340.0,57339.0,0.0004]
[1725988518106,0.47,57342.0,57326.0,0.0004]
[1725988518107,0.47088,57342.0,57326.0,0.0004]
[1725988518309,0.0004,57327.0,57326.0,0.0004]
[1725988519105,0.0004,57327.0,57315.0,0.087232]
[1725988519313,0.0004,57327.0,57326.0,0.001]
[1725988519611,0.00088,57331.0,57326.0,0.001]
[1725988519806,0.087204,57334.0,57330.0,0.0004]
[1725988520012,0.087196,57340.0,57333.0,0.0004]
[1725988520305,0.087194,57341.0,57330.0,0.0004]
[1725988520502,0.087194,57341.0,57340.0,0.0004]
[1725988520905,0.007,57342.0,57340.0,0.0004]
[1725988521105,0.007,57342.0,57341.0,0.0004]
[1725988521500,0.087191,57342.0,57341.0,0.0004]
[1725988521696,0.087188,57345.0,57341.0,0.0004]
[1725988522034,0.2334,57346.0,57330.0,0.0014]
[1725988522035,0.004,57349.0,57344.0,0.0004]
[1725988522311,0.09623879,57348.0,57342.0,0.46]
[1725988522496,0.004,57349.0,57343.0,0.08719]
[1725988522497,0.19042765,57344.0,57343.0,0.08719]
[1725988522701,0.09623215,57344.0,57342.0,0.00108]
[1725988522906,0.26928672,57343.0,57337.0,0.46]
[1725988523106,0.15615196,57338.0,57337.0,0.547199]
[1725988523311,0.0431047,57338.0,57337.0,0.547199]
[1725988523496,0.09663382,57338.0,57321.0,0.47]
[1725988523697,0.13841666,57323.0,57322.0,0.087221]
[1725988523909,0.15575196,57327.0,57322.0,0.087221]
[1725988524108,0.15575196,57323.0,57321.0,0.00108]
[1725988524409,0.18154471,57322.0,57321.0,0.087223]
[1725988524611,0.0431047,57322.0,57321.0,0.547223]
[1725988524807,0.0431047,57322.0,57321.0,1.147223]
[1725988525002,0.0431047,57322.0,57321.0,1.070583]
[1725988525198,0.0431047,57322.0,57321.0,0.610583]
[1725988525403,0.18154471,57322.0,57321.0,1.210583]
[1725988525699,0.0441047,57322.0,57321.0,0.624583]
[1725988525903,0.09764507,57322.0,57321.0,0.014]
[1725988526227,0.18486717,57322.0,57321.0,0.014]
[1725988526411,0.087229,57317.0,57311.0,0.1093]
[1725988526616,0.15580471,57313.0,57311.0,0.1093]
[1725988526809,0.25244988,57312.0,57311.0,0.1093]
[1725988527007,0.25244988,57312.0,57305.0,0.47116]
[1725988527201,0.0004,57306.0,57305.0,0.557248]
[1725988527406,0.13891295,57306.0,57305.0,1.157248]
[1725988527612,0.13891295,57306.0,57305.0,1.680768]
[1725988527613,0.0431047,57306.0,57305.0,1.680768]
[1725988528304,0.18161765,57306.0,57305.0,1.680768]
[1725988528509,0.0431047,57306.0,57305.0,1.680768]
[1725988528809,0.0441047,57306.0,57305.0,0.570248]
[1725988528999,0.0441047,57306.0,57305.0,0.483]
[1725988529205,0.15580471,57309.0,57308.0,0.087243]
[1725988529405,0.15580471,57309.0,57308.0,0.087643]
[1725988529615,0.15580471,57309.0,57308.0,1.211123]
[1725988530011,0.24304571,57309.0,57308.0,0.0004]
[1725988530408,0.24404571,57309.0,57308.0,0.0104]
[1725988531115,0.15680471,57309.0,57308.0,0.097643]
[1725988531303,0.15680471,57309.0,57308.0,0.621123]
[1725988531508,0.15780471,57309.0,57308.0,0.0204]
[1725988532606,0.15580471,57309.0,57308.0,0.0004]
[1725988532814,0.15680471,57309.0,57308.0,0.102643]
[1725988533219,0.15680471,57309.0,57308.0,0.0154]
[1725988533612,0.15680471,57309.0,57308.0,0.102643]
[1725988533812,0.17311635,57314.0,57313.0,0.17447]
[1725988534117,0.17311635,57314.0,57313.0,1.23487]
[1725988534318,0.17311635,57314.0,57313.0,1.75831]
[1725988534511,0.17311635,57314.0,57313.0,1.671075]
[1725988535116,0.17311635,57314.0,57313.0,1.681075]
[1725988535323,0.17311635,57314.0,57313.0,0.562635]
[1725988535617,0.17311635,57314.0,57313.0,1.686075]
[1725988535816,0.17311635,57314.0,57313.0,1.76731]
[1725988536117,0.1191,57347.0,57335.0,0.087202]
[1725988536320,0.1187,57340.0,57337.0,0.087199]
[1725988536520,0.087196,57339.0,57334.0,0.46108]
[1725988536722,0.0004,57335.0,57330.0,0.087209]
[1725988537017,0.0004,57335.0,57333.0,0.087204]
[1725988537624,0.0004,57335.0,57329.0,0.00108]
[1725988537814,0.0004,57330.0,57319.0,0.47]
[1725988538015,0.0004,57330.0,57314.0,0.47]
[1725988538219,0.0004,57320.0,57317.0,0.087229]
[1725988538521,0.0004,57330.0,57314.0,0.00108]
[1725988538710,0.0004,57315.0,57313.0,0.005]
[1725988538916,0.0004,57315.0,57304.0,0.47112]
[1725988539216,0.0004,57315.0,57304.0,0.47]
[1725988539421,0.0004,57305.0,57299.0,0.47]
[1725988539617,0.1189,57315.0,57304.0,0.47]
[1725988539817,0.1189,57315.0,57314.0,0.0004]
[1725988540022,0.207132,57315.0,57314.0,0.0004]
[1725988540208,1.330572,57315.0,57314.0,0.0004]
[1725988540726,0.730572,57315.0,57314.0,0.0004]
[1725988540920,0.730572,57315.0,57314.0,0.0034]
[1725988541612,0.733572,57315.0,57314.0,0.0004]
[1725988541813,0.732572,57315.0,57314.0,0.0004]
[1725988542020,1.332572,57315.0,57314.0,0.0004]
[1725988542320,0.087242,57309.0,57299.0,0.014]
[1725988542623,0.0004,57300.0,57295.0,0.47]
[1725988543119,0.0004,57296.0,57295.0,0.557263]
[1725988543820,0.0004,57296.0,57295.0,0.484]
[1725988544024,0.0004,57296.0,57295.0,0.014]
[1725988546423,0.0004,57296.0,57274.0,0.11696781]
[1725988546424,1.594,57296.0,57278.0,0.47]
[1725988546624,0.087271,57290.0,57278.0,0.557289]
[1725988546823,0.0004,57279.0,57278.0,0.087289]
[1725988547228,0.0004,57279.0,57278.0,0.557289]
[1725988547715,0.0004,57279.0,57278.0,0.571289]
[1725988548130,0.0004,57279.0,57278.0,0.014]
[1725988548425,0.0024,57279.0,57278.0,0.028]
[1725988548740,0.0024,57279.0,57278.0,0.115289]
[1725988549021,0.1115,57295.0,57278.0,1.62176]
[1725988549225,0.198763,57295.0,57294.0,0.0004]
[1725988549423,1.792363,57295.0,57278.0,0.115288]
[1725988549623,0.0004,57279.0,57278.0,0.101288]
[1725988549814,0.0014,57279.0,57278.0,0.022]
[1725988550018,0.0014,57279.0,57278.0,0.008]
[1725988550223,0.002,57279.0,57278.0,0.022]
[1725988550429,0.001,57279.0,57278.0,0.014]
[1725988550820,0.087286,57280.0,57269.0,0.47]
[1725988551133,0.001,57279.0,57278.0,0.014]
[1725988551330,0.089287,57279.0,57278.0,0.014]
[1725988551528,0.305687,57279.0,57278.0,0.014]
[1725988551830,0.2184,57279.0,57278.0,0.011]
[1725988552020,0.305687,57279.0,57278.0,0.011]
[1725988552429,0.2184,57279.0,57278.0,0.011]
[1725988552726,0.305687,57279.0,57278.0,0.011]
[1725988553029,0.304687,57279.0,57278.0,0.011]
[1725988553218,0.304687,57279.0,57269.0,0.009]
[1725988553219,0.47,57276.0,57269.0,0.009]
[1725988553415,0.0004,57270.0,57269.0,0.009]
[1725988553619,0.0004,57270.0,57258.0,0.47]
[1725988553820,0.0004,57259.0,57252.0,0.1054]
[1725988554019,0.0004,57270.0,57258.0,0.47]
[1725988554327,0.08729,57277.0,57269.0,0.0004]
[1725988554529,0.08729,57277.0,57276.0,0.0004]
[1725988554730,0.08729,57277.0,57269.0,0.087702]
[1725988555222,0.001,57270.0,57269.0,0.087702]
[1725988555925,0.001,57270.0,57269.0,0.0004]
[1725988556126,0.001,57270.0,57269.0,0.0144]
[1725988557032,0.087301,57270.0,57269.0,0.0144]
[1725988557327,0.088301,57270.0,57269.0,0.0214]
[1725988557527,0.001,57270.0,57269.0,0.0074]
[1725988557926,0.002,57270.0,57269.0,0.0164]
[1725988558423,0.002,57270.0,57269.0,0.103702]
[1725988558822,0.2164,57279.0,57276.0,0.087291]
[1725988559023,0.1107,57286.0,57278.0,0.0004]
[1725988559223,0.087287,57279.0,57278.0,0.0004]
[1725988559619,0.47096001,57281.0,57278.0,0.0004]
[1725988559830,0.087287,57279.0,57278.0,0.0004]
[1725988560021,0.1032,57285.0,57278.0,0.0004]